[Event "HUN Women vs Morgan Stanley 2022"]
[Site "Budapest"]
[Date "2022.06.27"]
[Round "2.2"]
[White "Gara, Ticia"]
[Black "Szamoskozi, Gabor"]
[Result "0-1"]
[ECO "B10"]
[WhiteElo "2367"]
[BlackElo "2243"]
[Annotator "TA"]
[PlyCount "68"]
[EventDate "2022.06.27"]
[EventType "schev"]
[EventCountry "HUN"]
[SourceTitle "playchess.com"]
[Source "ChessBase"]
[SourceQuality "1"]
[TimeControl "900+2"]

{[%evp 10,68,18,10,20,10,20,0,0,0,0,0,0,-1,0,-16,12,0,0,0,0,0,-14,-18,0,0,0,-31,0,-56,-4,-19,0,0,0,0,11,0,6,0,0,0,0,0,0,0,0,0,0,0,0,0,0,0,0,0,0,0,31,19,21]} 1. e4 {[%emt 0:00:05]} c6 {[%emt 0:00:05]} 2. Nf3 {[%emt 0:00:07]} d5 {[%emt 0:00:03]} 3. Nc3 {[%emt 0:00:04]} dxe4 {[%emt 0:00:07]} 4. Nxe4 {[%emt 0:00:01]} Nf6 {[%emt 0:00:03]} 5. Nxf6+ {[%emt 0:00:28]} exf6 {[%emt 0:00:02]} 6. d4 {[%emt 0:00:34]} Na6 {[%emt 0:00:03][%cal Bb8a6,Ba6c7,Bc7e6][%mdl 32] B15: Caro-Kann: 3 Nc3: 3...g6 and 3...dxe4 4 Nxe4 Nf6 5 Nxf6+ exf6.} (6... Bd6 {feels hotter.} 7. Bd3 O-O 8. Be3 Re8) 7. c3 {[%emt 0:00:28]} Nc7 {[%emt 0:00:05]} 8. Be2 {[%emt 0:00:31]} Bd6 {[%emt 0:00:08]} 9. O-O {[%emt 0:00:03]} O-O {[%emt 0:00:08] [#]} 10. c4 $146 {[%emt 0:01:18]} ({Predecessor:} 10. Ne1 f5 11. Nd3 Ne6 12. a4 Qf6 13. f4 Nc7 14. Ne5 Be6 15. a5 c5 16. Bf3 cxd4 17. cxd4 {1-0 (42) Halak,M (2280)-Kardis,B (2031) Slovakia 2020}) 10... Re8 {[%emt 0:02:03]} 11. Be3 {[%emt 0:00:21]} Ne6 {[%emt 0:00:38]} 12. Qd2 {[%emt 0:00:32]} h6 {[%emt 0:01:48]} 13. Rfd1 {[%emt 0:00:58]} (13. Bd3 {looks sharper.} Ng5 14. Nh4 Ne4 15. Qc2) 13... Ng5 {[%emt 0:00:06]} 14. Nxg5 {[%emt 0:00:10]} fxg5 {[%emt 0:00:19]} 15. d5 {[%emt 0:01:35] [#] Hoping for dxc6.} Qc7 {[%emt 0:00:31]} 16. h3 {[%emt 0:00:44]} c5 {[%emt 0:00:04]} 17. Rac1 {[%emt 0:02:19]} b6 {[%emt 0:00:09]} 18. Bd3 {[%emt 0:00:32]} f5 {[%emt 0:01:17] [#] White must now prevent ...f4.} 19. Bc2 {[%emt 0:00:10]} (19. Qc2 $11) 19... Bd7 {[%emt 0:01:16]} (19... f4 $15 20. Qd3 fxe3 21. fxe3 Kf7 22. Qg6+ Ke7) 20. Qd3 {[%emt 0:00:01]} Re7 {[%emt 0:00:16]} 21. Bd2 {[%emt 0:00:52]} Rae8 {[%emt 0:01:42]} 22. Re1 {[%emt 0:00:04]} Qd8 {[%emt 0:01:03]} 23. g3 {[%emt 0:01:20]} Re4 {[%emt 0:00:38]} 24. Qc3 {[%emt 0:00:37]} Rxe1+ {[%emt 0:00:58]} 25. Rxe1 {[%emt 0:00:01]} Rxe1+ {[%emt 0:00:02]} 26. Bxe1 {[%emt 0:00:00]} Qe7 {[%emt 0:00:02]} 27. Bd2 {[%emt 0:00:24]} Qe2 {[%emt 0:01:18]} 28. Qd3 {[%emt 0:00:05]} Qxd3 {[%emt 0:00:21]} 29. Bxd3 $11 {[%emt 0:00:00][%mdl 4096] Endgame KBB-KBB} Be5 {[%emt 0:00:04]} 30. b4 {[%emt 0:00:04]} cxb4 {[%emt 0:00:17]} 31. Bxb4 {[%emt 0:00:01]} f4 {[%emt 0:00:06]} 32. Kg2 {[%emt 0:00:17]} Kf7 {[%emt 0:00:06]} 33. c5 {[%emt 0:00:14] aiming for c6.} bxc5 {[%emt 0:00:03]} (33... a5 $5 {[%cal Ra5b4]} 34. Ba3 bxc5 $11) 34. Bxc5 {[%emt 0:00:01]} a5 {[%emt 0:00:01][%mdl 32768] An uneventful encounter.  Weighted Error Value: White=0.09 (flawless) /Black=0.08 (flawless) . Loss on time!?} 0-1

[Event "HUN Women vs Morgan Stanley 2022"]
[Site "Budapest"]
[Date "2022.06.27"]
[Round "2.3"]
[White "Torok, Sandor"]
[Black "Gaal, Zsoka"]
[Result "0-1"]
[ECO "B03"]
[WhiteElo "2184"]
[BlackElo "2323"]
[Annotator "TA"]
[PlyCount "74"]
[EventDate "2022.06.27"]
[EventType "schev"]
[EventCountry "HUN"]
[SourceTitle "playchess.com"]
[Source "ChessBase"]
[SourceQuality "1"]
[TimeControl "900+2"]

{[%evp 17,74,42,39,39,46,38,36,32,64,60,50,49,51,0,13,-43,-37,-39,-39,-33,-47,-45,-22,-43,0,0,0,-105,-124,-134,-128,-242,-237,-185,-104,-162,-136,-216,-166,-188,-181,-154,-154,-176,-26,-154,-82,-117,-76,-258,-234,-232,-172,-147,-153,-29989,-29990,-29994,-1233]} 1. e4 {[%emt 0:00:04][%cal Be2e4,Be4e5][%mdl 32]} Nf6 {[%emt 0:00:07]} 2. e5 {[%emt 0:00:04]} Nd5 {[%emt 0:00:01]} 3. d4 {[%emt 0:00:03]} d6 {[%emt 0:00:01]} 4. c4 {[%emt 0:00:01]} Nb6 {[%emt 0:00:01]} 5. exd6 {[%emt 0:00:01]} cxd6 {[%emt 0:00:01]} 6. Nc3 {[%emt 0:00:03]} g6 {[%emt 0:00:01]} 7. Be3 {[%emt 0:00:02]} Bg7 {[%emt 0:00:01]} 8. Rc1 {[%emt 0:00:04]} O-O {[%emt 0:00:02]} 9. b3 {[%emt 0:00:25]} Bf5 {[%emt 0:00:01]} 10. g4 {[%emt 0:01:21] B03: Alekhine's Defence: Four Pawns Attack.} Bc8 {[%emt 0:00:43]} 11. Bg2 {[%emt 0:00:02]} Nc6 {[%emt 0:00:45][%cal Od6d5]} 12. h3 {[%emt 0:01:51] White is slightly better.} e5 {[%emt 0:00:48][%cal Re5d4] [#]} 13. dxe5 $146 {[%emt 0:01:12]} ({Predecessor:} 13. d5 Nd4 14. Nge2 Nxe2 15. Qxe2 f5 16. gxf5 gxf5 17. Qh5 Nd7 18. Bf3 Nf6 19. Qh4 {1-0 (64) Sliwicka,A (2317)-Bulmaga,I (2440) Chess.com INT 2020}) 13... dxe5 {[%emt 0:00:15]} 14. Qxd8 {[%emt 0:00:06]} Rxd8 {[%emt 0:00:07]} 15. c5 {[%emt 0:00:44]} (15. Nge2 $14) 15... Nd7 {[%emt 0:00:10]} 16. Ne4 {[%emt 0:00:04]} (16. Nge2 $11) 16... f5 {[%emt 0:00:28]} 17. gxf5 {[%emt 0:01:22]} ({Reject} 17. Nd6 f4 18. Bd5+ Kf8) 17... gxf5 {[%emt 0:00:01][%cal Bg6f5,Bf5f4,Bf4e3,Be3f2][%mdl 32]} 18. Nd6 {[%emt 0:00:01]} f4 {[%emt 0:00:10]} 19. Nxc8 {[%emt 0:02:06]} fxe3 {[%emt 0:01:37]} 20. Bxc6 {[%emt 0:00:25]} bxc6 {[%emt 0:02:10]} 21. Ne7+ {[%emt 0:00:02]} Kf7 {[%emt 0:00:08]} 22. Nxc6 {[%emt 0:00:01]} (22. Nf5 $11) 22... Rdc8 $36 {[%emt 0:00:03][%mdl 2048] Black is really pushing.} 23. Na5 {[%emt 0:04:34]} Nxc5 {[%emt 0:00:11] Hoping for ...Nd3+.} 24. Ke2 {[%emt 0:00:02] Against Nd3} (24. Rc4 $17) 24... exf2 $19 {[%emt 0:00:12]} 25. Nf3 {[%emt 0:00:00]} e4 {[%emt 0:01:47]} (25... Ne4 $19 26. Nc4 Ke6) 26. Ng5+ {[%emt 0:00:09]} (26. Nd2 $17) 26... Kg6 {[%emt 0:00:08]} 27. b4 {[%emt 0:00:15]} (27. h4 $17 {might work better.}) 27... Kxg5 {[%emt 0:03:57]} ({Weaker is} 27... Bd4 28. bxc5 Kxg5 29. Nb3 $11) 28. bxc5 {[%emt 0:00:02] [#]} Rf8 $1 {[%emt 0:00:33]} 29. Rhf1 {[%emt 0:00:42] [#]} e3 {[%emt 0:00:26]} 30. Nc4 {[%emt 0:00:01]} Bd4 {[%emt 0:00:11]} (30... Rae8 $19 {Threatens to win with ...Kh4.} 31. Rcd1 Re4 32. Rd5+ Kf4) 31. c6 {[%emt 0:00:02]} (31. Rfd1 $11 {was the only way to keep the balance.} Bxc5 32. Rd5+ Rf5 33. h4+ Kg4 34. Rxf5 Kxf5 35. Nxe3+ Bxe3 36. Kxe3) 31... Rac8 {[%emt 0:00:09] Black is more active.} ({Black should try} 31... Bb6 {And now ...Kh4 would win.} 32. Nxe3 Bxe3 33. Kxe3 Kh4) 32. Nd6 {[%emt 0:00:02]} Rcd8 {[%emt 0:00:24]} 33. Ne4+ {[%emt 0:00:07]} (33. Nc4 $17 {keeps fighting.}) 33... Kf4 {[%emt 0:00:03]} 34. c7 {[%emt 0:00:01] [#]} Kxe4 $1 {[%emt 0:00:08] Really sharp!} 35. cxd8=Q {[%emt 0:00:02]} Rxd8 {[%emt 0:00:01]} 36. Rc7 $2 {[%emt 0:00:04] [#]} (36. Rfd1 $17) 36... Bc5 $1 {[%emt 0:00:07][%csl Ge3][%cal Rd8d2][%mdl 512]} 37. Rb1 {[%emt 0:00:05]} (37. Rxf2 Rd2+) 37... Rd2+ {[%emt 0:00:02] Weighted Error Value: White=0.51/Black=0.20 (precise)} 0-1

[Event "HUN Women vs Morgan Stanley 2022"]
[Site "Budapest"]
[Date "2022.06.27"]
[Round "2.4"]
[White "Lazarne Vajda, Szidonia"]
[Black "Novaky, Csaba"]
[Result "1/2-1/2"]
[ECO "C54"]
[WhiteElo "2313"]
[BlackElo "2091"]
[Annotator "TA"]
[PlyCount "48"]
[EventDate "2022.06.27"]
[EventType "schev"]
[EventCountry "HUN"]
[SourceTitle "playchess.com"]
[Source "ChessBase"]
[SourceQuality "1"]
[TimeControl "900+2"]

{[%evp 20,32,8,12,16,8,12,19,8,0,0,-41,-35,-38,-32]} 1. e4 {[%emt 0:00:05]} e5 {[%emt 0:00:04]} 2. Nf3 {[%emt 0:00:06]} Nc6 {[%emt 0:00:02]} 3. d4 {[%emt 0:00:09]} exd4 {[%emt 0:00:02]} 4. Bc4 {[%emt 0:00:05]} Bc5 {[%emt 0:00:09]} 5. c3 {[%emt 0:00:35]} Nf6 {[%emt 0:00:07]} 6. cxd4 {[%emt 0:00:56]} Bb4+ {[%emt 0:00:02]} 7. Bd2 {[%emt 0:00:08]} Bxd2+ {[%emt 0:00:06]} 8. Nbxd2 {[%emt 0:00:03]} d5 {[%emt 0:00:02]} 9. exd5 {[%emt 0:00:24]} Nxd5 {[%emt 0:00:02]} 10. O-O {[%emt 0:00:35]} O-O {[%emt 0:00:06]} 11. Rc1 {[%emt 0:05:31][%cal Ba1c1,Bc1c5,Bc5d5][%mdl 32] seems to push 11.Re1 aside.} Bg4 {[%emt 0:00:25] C54: Giuoco Piano: 4 c3 Nf6, main lines with 5 d4 and 5 d3.} 12. h3 {[%emt 0:00:10]} Bh5 {[%emt 0:00:49]} 13. Bxd5 {[%emt 0:01:04]} Qxd5 {[%emt 0:00:02]} 14. Rc5 {[%emt 0:00:02]} Bxf3 {[%emt 0:00:01]} 15. Rxd5 {[%emt 0:00:01]} (15. Nxf3 $5 {[%cal Rc5d5]} Qxa2 16. d5 $11) 15... Bxd1 {[%emt 0:00:02]} 16. Rxd1 {[%emt 0:00:01]} Rad8 {[%emt 0:00:11] [#] White did not feel at home in the position after the opening.  Weighted Error Value: White=0.09 (flawless) /Black=0.01 (flawless)} {Predecessor:} 17. Rxd8 $146 Rxd8 18. Nf3 f6 19. Kf1 Kf7 20. Ke2 Nb4 21. a3 Re8+ 22. Kd2 Nd5 23. g3 Re6 24. Kd3 Nb6 {½-½ (24) Klaska,P (1444)-Zobel,C (1404) Willingen 2019} 1/2-1/2

[Event "HUN Women vs Morgan Stanley 2022"]
[Site "Budapest"]
[Date "2022.06.27"]
[Round "2.5"]
[White "Torma, Robert"]
[Black "Terbe, Julianna"]
[Result "0-1"]
[ECO "D10"]
[WhiteElo "2421"]
[BlackElo "2304"]
[Annotator "TA"]
[PlyCount "103"]
[EventDate "2022.06.27"]
[EventType "schev"]
[EventCountry "HUN"]
[SourceTitle "playchess.com"]
[Source "ChessBase"]
[SourceQuality "1"]
[TimeControl "900+2"]

{[%evp 13,103,20,20,21,21,20,14,14,15,9,14,19,9,11,10,-43,-62,-73,0,-37,105,54,78,0,232,216,205,236,241,175,216,178,171,177,181,184,162,181,200,164,210,180,192,109,127,24,25,41,37,7,8,-85,-85,-119,-127,-169,-183,-161,-174,-222,-212,-256,-218,-305,-283,-326,-261,-236,-255,-301,-308,-409,-398,-387,-387,-377,-362,-365,-355,-341,-291,-612,-591,-2031,-1803,-1557,-1276,-4582,-2657,-2317,-3874,-1425]} 1. d4 {[%emt 0:00:05]} d5 {[%emt 0:00:03]} 2. c4 {[%emt 0:00:05]} c6 {[%emt 0:00:01]} 3. cxd5 {[%emt 0:00:03]} cxd5 {[%emt 0:00:01]} 4. Bf4 {[%emt 0:00:02]} Nf6 {[%emt 0:00:03]} 5. e3 {[%emt 0:00:02]} Nc6 {[%emt 0:00:02]} 6. Nc3 {[%emt 0:00:02]} Bf5 {[%emt 0:00:02]} 7. Qb3 {[%emt 0:00:08]} Na5 {[%emt 0:00:01]} 8. Qa4+ {[%emt 0:00:04] D10: Slav Defence: 3 cxd5 (without early Nf3) and 3 Nc3.} Bd7 {[%emt 0:00:03]} 9. Qc2 {[%emt 0:00:01]} e6 {[%emt 0:00:08]} 10. Bd3 {[%emt 0:00:12] The position is equal.} Be7 {[%emt 0:00:13]} 11. Nf3 {[%emt 0:00:29]} Nc6 {[%emt 0:00:11]} 12. a3 {[%emt 0:00:13]} Nh5 {[%emt 0:00:02]} 13. Be5 {[%emt 0:00:16]} (13. Bxh7 Nxf4 14. exf4 g6 15. Bxg6 fxg6 16. Qxg6+ Kf8 $17) 13... f6 {[%emt 0:00:08] [#]} 14. Bxh7 $146 {[%emt 0:02:45]} ({Predecessor:} 14. Bg3 f5 15. Be5 Nf6 16. O-O O-O 17. h3 Rc8 18. Bh2 Ne4 19. Qe2 Be8 20. Ne5 Nxe5 21. Bxe5 Nxc3 22. bxc3 Rxc3 {0-1 (72) Dubov,D (2711)-Lazavik,D (2483) Chess.com INT 2022}) 14... fxe5 $15 {[%emt 0:00:03]} 15. dxe5 {[%emt 0:00:08]} (15. Qg6+ Kf8 16. Qxh5 exd4 17. Nxd4 Nxd4 18. exd4 Bf6 $17) 15... Qa5 {[%emt 0:03:41]} (15... Kf8 $17 16. g4 d4) 16. Qg6+ {[%emt 0:01:02]} (16. O-O $5 {[%cal Rc2g6]}) 16... Kd8 {[%emt 0:00:01]} (16... Kf8 $1 $15) 17. Qxh5 {[%emt 0:00:03]} (17. O-O $16) 17... Be8 $14 {[%emt 0:00:20] [#]} 18. Qh3 {[%emt 0:00:04]} (18. Qg4 $1 $16 {[%cal Rg4e6]} Rxh7 19. Qxe6) 18... Bg6 $2 {[%emt 0:00:07] [#]} (18... Bf7 $1 $11 {and Black is okay.}) 19. Qxe6 $1 $18 {[%emt 0:00:43]} Bxh7 {[%emt 0:00:02]} 20. Rd1 {[%emt 0:00:25]} (20. Qxd5+ Qxd5 21. Nxd5 Rc8 $11) 20... Bg8 {[%emt 0:00:38]} 21. Qg4 {[%emt 0:00:03]} Kc7 {[%emt 0:01:22]} 22. b4 {[%emt 0:00:57]} ({Don't take} 22. Qxg7 $6 d4 23. b4 (23. Qxh8 dxc3 24. O-O cxb2 $11) (23. Nxd4 Qxe5 24. Qxe5+ Nxe5 $11) (23. exd4 Bb3 $16) 23... Rh7 $16) 22... Nxb4 {[%emt 0:00:58]} 23. axb4 {[%emt 0:00:01]} Qxb4 {[%emt 0:00:03]} 24. Qxb4 {[%emt 0:00:40]} ({Resist} 24. Qd4 Qc4 $16) 24... Bxb4 {[%emt 0:00:01] [#]} 25. Ke2 $1 {[%emt 0:01:07]} Rd8 {[%emt 0:01:28]} (25... Bxc3 26. Rc1) 26. Nb5+ {[%emt 0:00:58] Pair of Knights!} Kb6 {[%emt 0:00:21]} (26... Kb8 $142 27. Ne1 g5) 27. Nfd4 {[%emt 0:00:36]} a5 {[%emt 0:01:00]} 28. f4 {[%emt 0:00:11]} ({Better is} 28. Rb1 $18) 28... Bh7 $16 {[%emt 0:00:45]} 29. f5 {[%emt 0:01:14]} (29. h4 $16) 29... Bxf5 $1 $11 {[%emt 0:00:40]} 30. Nxf5 {[%emt 0:00:03]} Kxb5 {[%emt 0:00:01]} 31. Nd4+ {[%emt 0:00:38]} Kb6 {[%emt 0:00:08]} 32. h3 {[%emt 0:00:12] [#]} (32. Ne6 $11 {remains equal.} Rde8 33. Nf4) 32... Rhe8 $1 $17 {[%emt 0:00:35]} 33. e6 {[%emt 0:00:36]} Bc3 {[%emt 0:00:52]} 34. Rhf1 {[%emt 0:00:57]} Bxd4 {[%emt 0:00:09]} 35. Rxd4 {[%emt 0:00:01]} Rxe6 $19 {[%emt 0:00:01][%mdl 4096] Endgame KRR-KRR} 36. Rf7 {[%emt 0:00:03] [#]} (36. Kd2 $142) 36... g6 $1 {[%emt 0:00:19]} 37. Kd2 {[%emt 0:00:21]} Kc6 {[%emt 0:00:30]} 38. Rg7 {[%emt 0:00:17]} Rf8 {[%emt 0:00:24]} 39. Rg4 {[%emt 0:00:08]} Rff6 {[%emt 0:00:01]} 40. Rg8 {[%emt 0:00:07]} b5 {[%emt 0:00:08]} 41. Ra8 {[%emt 0:00:05]} a4 {[%emt 0:00:05]} 42. h4 {[%emt 0:00:05]} Kb7 {[%emt 0:00:20]} 43. Ra5 {[%emt 0:00:01]} Kb6 {[%emt 0:00:03]} 44. Ra8 {[%emt 0:00:02]} Re4 {[%emt 0:00:10] Against Rb4} 45. Rg5 {[%emt 0:00:09]} Rxh4 {[%emt 0:00:09]} 46. Rxd5 {[%emt 0:00:02]} Rb4 {[%emt 0:00:01]} 47. Rad8 $2 {[%emt 0:00:05]} (47. Kc3 Rb3+ 48. Kd4) 47... Rb3 {[%emt 0:00:06] Black is clearly winning.} 48. R5d6+ {[%emt 0:00:03]} Rxd6+ {[%emt 0:00:03]} 49. Rxd6+ {[%emt 0:00:01]} Kc5 {[%emt 0:00:00]} 50. Rxg6 {[%emt 0:00:01]} a3 {[%emt 0:00:02]} 51. Ra6 {[%emt 0:00:02]} b4 {[%emt 0:00:02]} 52. g4 {Black used his chance.  Weighted Error Value: White=0.71/Black=0.23 (precise)} 0-1

[Event "HUN Women vs Morgan Stanley 2022"]
[Site "Budapest"]
[Date "2022.06.27"]
[Round "3.2"]
[White "Tomosvary, Attila"]
[Black "Gara, Ticia"]
[Result "0-1"]
[ECO "B23"]
[WhiteElo "2140"]
[BlackElo "2367"]
[Annotator "TA"]
[PlyCount "94"]
[EventDate "2022.06.27"]
[EventType "schev"]
[EventCountry "HUN"]
[SourceTitle "playchess.com"]
[Source "ChessBase"]
[SourceQuality "1"]
[TimeControl "900+2"]

{[%evp 15,94,-6,8,0,-13,-14,-13,-11,-22,-26,11,47,57,55,126,116,111,103,115,112,109,29,79,79,98,87,104,91,163,15,171,18,225,49,152,64,96,96,216,78,355,353,697,259,266,241,346,332,382,370,2024,159,705,747,735,713,29980,-289,-22,-24,-28,-21,0,-112,-99,-101,-14,-14,-14,-14,0,0,0,0,0,-14,-14,-29972,-29972,-29972,-5081]} 1. e4 {[%emt 0:00:07]} c5 {[%emt 0:00:04]} 2. Nc3 {[%emt 0:00:07]} Nc6 {[%emt 0:00:02]} 3. f4 {[%emt 0:00:09]} g6 {[%emt 0:00:20]} 4. Nf3 {[%emt 0:00:05]} Bg7 {[%emt 0:00:03]} 5. Bb5 {[%emt 0:00:16]} Nd4 {[%emt 0:00:11]} 6. O-O {[%emt 0:00:11]} Nxb5 {[%emt 0:00:07]} 7. Nxb5 {[%emt 0:00:03]} d6 {[%emt 0:00:37]} 8. d3 {[%emt 0:00:35]} Nf6 {[%emt 0:00:16] 8...a6 is more fashionable.} 9. c4 {[%emt 0:00:23] B23: Closed Sicilian: Lines without g3.} O-O {[%emt 0:00:25]} 10. Qe1 {[%emt 0:00:21]} a6 {[%emt 0:00:20]} 11. Nc3 {[%emt 0:00:03] The position is equal.} b5 {[%emt 0:00:06]} 12. Qh4 {[%emt 0:00:39]} bxc4 {[%emt 0:00:16]} 13. dxc4 {[%emt 0:00:07]} Bb7 {[%emt 0:03:58]} 14. f5 $1 {[%emt 0:00:33] [#]} Qd7 $146 {[%emt 0:02:04]} (14... gxf5 $14 15. Bh6 Bxh6 16. Qxh6 Ng4) ({Predecessor:} 14... Qb6 15. Nd5 Bxd5 16. exd5 Rab8 17. Rf2 Qa5 18. Bd2 Qa4 19. fxg6 fxg6 20. Bc3 h6 {1-0 (41) Roque,M-Pacis,A (2289) Manila 2006}) 15. Bh6 $1 $16 {[%emt 0:01:27]} Nh5 {[%emt 0:01:36]} 16. Bxg7 {[%emt 0:00:36]} Kxg7 {[%emt 0:00:08]} 17. Ng5 {[%emt 0:01:28]} h6 {[%emt 0:00:31]} 18. Nf3 {[%emt 0:01:33]} (18. Nh3 $1 $16) 18... Nf6 {[%emt 0:00:22]} (18... e6 $11) 19. Rae1 {[%emt 0:00:26]} (19. e5 dxe5 20. Nxe5 (20. fxg6 e4 $15) 20... Qd2 $11) 19... e6 {[%emt 0:00:37]} 20. fxe6 {[%emt 0:01:43]} fxe6 {[%emt 0:00:54]} 21. Rd1 {[%emt 0:00:15]} Qc6 {[%emt 0:00:17]} (21... Nh5 $16 {might work better.}) 22. Rfe1 {[%emt 0:00:27]} (22. Qg3 $6 Rad8 $14) (22. e5 $1 $18 dxe5 23. Qg3) 22... Rad8 {[%emt 0:00:15]} (22... e5 $1 $11) 23. Rd2 $2 {[%emt 0:00:11]} ({Only move:} 23. e5 $18 dxe5 24. Rxd8 Rxd8 25. Ne4 $1 Qxe4 26. Rxe4 Bxe4 27. Qe1 (27. Nxe5 Rd1+ 28. Kf2 Bf5 $16)) 23... a5 $2 {[%emt 0:00:30]} (23... Qc7 $11) 24. b3 $2 {[%emt 0:00:09]} (24. e5 $18 dxe5 25. Nxe5) 24... a4 {[%emt 0:00:05]} (24... g5 $14 25. Qf2 e5) 25. bxa4 {[%emt 0:00:42]} ({White should try} 25. e5 $16 dxe5 26. Nxe5) 25... Qa6 {[%emt 0:00:16]} 26. Nb5 $1 {[%emt 0:00:19] Threatens to win with Nc7.} (26. e5 $6 dxe5 27. Rxe5 (27. Rxd8 Rxd8 28. Nxe5 Rd2 $11) 27... Bxf3 28. Rxd8 Rxd8 $11) 26... Qc6 {[%emt 0:00:57] Prevents Nc7.} (26... g5 $2 27. Nxg5 $1 {[%mdl 512]} hxg5 28. Qxg5+ Kh8 29. Qh6+ Nh7 30. Nc7 $18 (30. Qxe6 Qa5 $16)) (26... e5 $16 {is a better defense.}) 27. Rde2 {[%emt 0:00:16]} (27. e5 $18 {and the rest is easy.} dxe5 28. Rb2 (28. Nxe5 Rxd2 29. Nxc6 Bxc6 $11)) 27... Ra8 $2 {[%emt 0:00:10][%mdl 8192]} (27... e5 $16) 28. e5 $18 {[%emt 0:00:43]} dxe5 {[%emt 0:00:01]} (28... Nh7 29. Nxd6 (29. exd6 Rxf3 30. gxf3 Ng5 $16) 29... Qc7) 29. Rxe5 $2 {[%emt 0:00:05]} (29. Nxe5 Qe8 30. Nc7) 29... Rae8 {[%emt 0:00:20]} 30. Qh3 {[%emt 0:00:17]} Bc8 {[%emt 0:00:05]} (30... Nh5 $142 31. Rxh5 (31. Rxe6 Nf4 $18) 31... gxh5) 31. Nh4 {[%emt 0:00:15] Qd3 is the strong threat. Pair of Knights!} g5 {[%emt 0:00:06]} 32. Qg3 {[%emt 0:00:14]} Re7 $2 {[%emt 0:00:03] [#]} (32... Rd8 33. Nf3 Qb7 34. Rxc5 Qb6 35. Qc7+ Qxc7 36. Rxc7+ Rf7) 33. Nc3 $2 {[%emt 0:00:17]} (33. Rxg5+ $1 $18 {[%mdl 512] is the precise move to win.} hxg5 34. Qxg5+ Kh7 35. Qg6+ Kh8 36. Qh6+ Kg8 37. Ng6) 33... Bb7 $2 {[%emt 0:00:00] [#]} (33... Rb7 $16 34. Nb5 Qb6) 34. Nd5 $1 {[%emt 0:00:05][%mdl 512]} Nxd5 {[%emt 0:00:02]} 35. cxd5 {[%emt 0:00:02] Intending Rxg5+ and mate.} ({Weaker is} 35. Rxd5 Rd7 36. Qc3+ Rf6 37. Rxd7+ Qxd7 $11) 35... Qxa4 {[%emt 0:00:03] [#]} 36. Rxe6 $4 {[%emt 0:00:34][%mdl 8192]} (36. Rxg5+ $1 {[%mdl 512] mates} hxg5 37. Qxg5+ Kh7 38. Qxe7+ Kg8 39. Qxe6+ Rf7 40. Nf5 Kf8 41. Qd6+ Kg8 42. Qg6+ Kf8 43. Nh6) 36... Qd4+ $2 {[%emt 0:00:04] Really sharp!} ({Black should play} 36... Rxe6 $19 37. dxe6 Qxh4 38. Qxh4 gxh4) 37. Kh1 $11 {[%emt 0:00:05]} Ref7 {[%emt 0:00:02] ( -> ...Rf1+)} 38. Nf3 {[%emt 0:00:12]} Qxd5 $40 {[%cal Rf7f3][%mdl 128] White must now prevent ...Rxf3. Black has some attack.} (38... Bxd5 {is more complex.} 39. Re7 Qf4 40. Qxf4 gxf4 41. R7e2 c4) 39. Qe5+ {[%emt 0:00:10]} ({Of course not} 39. Qh3 Rf6 40. a4 Bc6 $15) (39. Rd6 $11 {keeps the balance.} Qf5 40. Re5 Qb1+ 41. Re1) 39... Qxe5 $17 {[%emt 0:00:03]} 40. R6xe5 {[%emt 0:00:01]} Bxf3 {[%emt 0:00:01]} ({Better is} 40... g4 $17 41. Nd2 Rf2) 41. gxf3 $11 {[%emt 0:00:02]} Rxf3 {[%emt 0:00:00]} 42. Rxc5 $17 {[%emt 0:00:07][%mdl 4096] Endgame KRR-KRR} Rf2 {[%emt 0:00:02]} 43. Rc7+ {[%emt 0:00:02]} Kg6 {[%emt 0:00:01]} 44. Rc6+ {[%emt 0:00:01]} Kh5 {[%emt 0:00:02]} 45. Kg1 {[%emt 0:00:03]} Rxa2 {[%emt 0:00:00]} 46. Rf1 $2 {[%emt 0:00:01][%mdl 8192] [#]} (46. Re3 $11) 46... Rxf1+ $1 {[%emt 0:00:02]} 47. Kxf1 {[%emt 0:00:01]} Rxh2 {[%emt 0:00:00] Black used his chance.  Weighted Error Value: White=0.93/Black=0.74} 0-1